bitfinex/quotes_ETHUSD_20240717
["timestamp","ask_amount","ask_price","bid_price","bid_amount"]
[1721228474405,2.89034,3459.8,3459.3,0.783022]
[1721228475009,2.89034,3459.8,3459.1,2.89091]
[1721228475210,5.78041,3460.0,3459.2,2.89083]
[1721228475426,2.89017,3460.0,3459.2,2.89083]
[1721228475606,2.89033,3459.9,3459.2,2.89083]
[1721228475804,2.89036,3459.8,3459.1,2.89091]
[1721228476132,2.89051,3459.6,3458.9,2.89104]
[1721228476432,2.89051,3459.6,3459.0,2.89098]
[1721228477294,8.17477,3459.8,3459.0,2.89098]
[1721228477494,2.3621,3460.2,3459.1,2.89092]
[1721228477696,2.8904,3459.8,3459.1,2.89092]
[1721228477901,2.89042,3459.7,3458.9,4.01706876]
[1721228478108,2.89042,3459.7,3459.0,3.99323088]
[1721228478507,2.89034,3459.8,3459.1,2.89087]
[1721228480238,2.89054,3459.6,3459.0,2.458]
[1721228480720,2.89054,3459.6,3459.0,5.34899]
[1721228481667,2.89062,3459.5,3459.0,2.458]
[1721228481825,2.4742,3459.5,3458.7,2.89121]
[1721228482143,2.89073,3459.4,3458.7,4.249652]
[1721228482727,5.78148,3459.4,3458.7,4.249652]
[1721228482913,2.89103,3459.0,3458.3,10.29152]
[1721228483112,2.89103,3459.0,3458.3,2.89152]
[1721228483976,2.89089,3459.2,3458.5,5.2107]
[1721228484113,2.89051,3459.6,3458.6,3.268222]
[1721228484311,2.89035,3459.8,3458.6,3.268222]
[1721228484312,2.89035,3459.8,3459.0,2.458]
[1721228484623,2.89047,3459.7,3459.0,2.458]
[1721228485233,5.20528,3459.9,3459.0,5.349]
[1721228485464,5.20528,3459.9,3459.1,3.714917]
[1721228485674,2.89048,3459.7,3459.1,0.824007]
[1721228486347,8.09561,3459.9,3459.1,3.714917]
[1721228486545,2.89013,3460.1,3459.2,2.2933]
[1721228486886,2.89013,3460.1,3459.3,2.89071]
[1721228487043,5.15005,3460.3,3459.4,0.8898887]
[1721228487378,2.89018,3460.0,3459.4,0.8898887]
[1721228488086,2.89009,3460.1,3459.0,2.458]
[1721228488087,2.89059,3459.5,3459.0,2.458]
[1721228488240,2.89059,3459.5,3458.7,5.78238]
[1721228488436,2.3883,3459.6,3458.9,2.89108]
[1721228488639,5.27885,3459.6,3458.9,2.89108]
[1721228489769,2.8906,3459.5,3458.9,2.89108]
[1721228490177,2.8906,3459.5,3458.9,3.7961292]
[1721228490584,5.78126,3459.5,3458.7,2.89119]
[1721228490739,2.8906,3459.5,3458.7,2.89119]
[1721228491067,2.8906,3459.5,3458.8,2.89112]
[1721228491262,5.78126,3459.5,3458.8,2.89112]
[1721228491878,2.3883,3459.6,3458.9,2.89108]
[1721228492102,2.3674,3460.2,3459.4,2.89067]
[1721228492383,15.11921,3461.2,3459.4,2.89067]
[1721228492384,2.3674,3460.6,3459.8,2.458]
[1721228492563,2.88975,3460.5,3459.9,0.0577978]
[1721228492945,2.88975,3460.5,3459.8,2.992842]
[1721228493149,2.88975,3460.5,3459.9,0.05779781]
[1721228493378,2.88975,3460.5,3459.6,2.8905]
[1721228493379,2.88994,3460.3,3459.6,2.8905]
[1721228493584,2.88975,3460.5,3459.7,2.89041]
[1721228493880,2.89,3460.2,3459.4,2.458]
[1721228494100,2.89025,3460.0,3459.4,2.458]
[1721228494375,5.25712,3460.6,3459.2,2.89078]
[1721228494376,2.89027,3459.9,3459.2,2.89078]
[1721228494587,2.89027,3459.9,3459.0,2.458]
[1721228494754,2.89027,3459.9,3459.1,2.89087]
[1721228494755,5.20817,3459.9,3459.1,2.89087]
[1721228495143,5.20817,3459.9,3459.1,2.89085]
[1721228495336,5.20817,3459.9,3459.2,2.89082]
[1721228495552,2.89017,3460.0,3459.3,2.89073]
[1721228495806,2.88981,3460.5,3459.5,4.1191]
[1721228496084,5.88926,3461.1,3459.5,4.1191]
[1721228496085,2.4635,3461.1,3459.9,7.202]
[1721228496268,2.88926,3461.1,3460.3,5.34784]
[1721228496716,2.88926,3461.1,3460.3,2.458]
[1721228496845,2.88926,3461.1,3460.4,2.88983]
[1721228497595,2.88933,3461.0,3460.3,2.458]
[1721228498567,2.88971,3460.6,3459.9,2.458]
[1721228498765,2.88971,3460.6,3459.9,6.00959694]
[1721228500292,2.2798,3460.7,3459.5,2.458]
[1721228500496,2.89027,3459.9,3459.1,6.85629663]
[1721228500698,2.89027,3459.9,3459.1,5.34889]
[1721228500869,2.89027,3459.9,3459.2,2.89083]
[1721228501069,2.89003,3460.2,3459.3,3.944723]
[1721228501582,2.89026,3459.9,3459.1,2.458]
[1721228501767,2.89042,3459.7,3459.1,2.458]
[1721228502207,2.89051,3459.6,3459.1,2.458]
[1721228502419,2.89048,3459.7,3459.1,2.458]
[1721228502698,2.89051,3459.6,3459.1,2.458]
[1721228502903,2.89039,3459.8,3459.1,2.458]
[1721228503511,2.89019,3460.0,3459.1,3.162909]
[1721228503690,2.8901,3460.1,3459.3,2.89073]
[1721228504067,2.8901,3460.1,3459.4,2.89066]
[1721228504894,2.89018,3460.0,3459.1,6.053789]
[1721228505093,2.89018,3460.0,3459.2,0.83612084]
[1721228505270,2.89018,3460.0,3459.1,2.458]
[1721228505271,2.89042,3459.8,3459.1,2.458]
[1721228505679,2.89042,3459.8,3458.8,2.8911]
[1721228505890,2.89041,3459.8,3458.9,3.89611247]
[1721228506206,2.89051,3459.6,3458.9,2.89104]
[1721228506410,2.89043,3459.7,3459.0,2.891]
[1721228507064,2.89044,3459.7,3459.0,0.85420683]
[1721228507385,2.89052,3459.6,3458.9,2.89103]
[1721228509023,2.8907,3459.4,3458.7,5.65102829]
[1721228509552,2.8907,3459.4,3458.7,5.34918]
[1721228511934,2.89086,3459.2,3458.5,2.89139]
[1721228512350,2.89076,3459.3,3458.6,2.89134]
[1721228512509,5.78159,3459.3,3458.6,2.89134]
[1721228512719,2.89076,3459.3,3458.6,2.89134]
[1721228513057,2.89076,3459.3,3458.8,2.458]
[1721228513539,2.89076,3459.3,3458.6,2.89134]
[1721228513743,2.89084,3459.2,3458.6,2.89134]
[1721228513952,2.89084,3459.2,3458.4,2.458]
[1721228513953,2.89093,3459.1,3458.4,5.34946]
[1721228514112,2.89093,3459.1,3458.5,2.89142]
[1721228514702,2.89093,3459.1,3458.5,3.19347231]
[1721228518455,5.78192,3459.1,3458.5,3.19347231]
[1721228518753,5.78192,3459.1,3458.5,0.30205231]
[1721228519172,2.89102,3459.0,3458.5,0.30205231]
[1721228519371,1.21238354,3459.9,3458.5,3.45653923]
[1721228519372,2.4627,3459.6,3458.5,3.45653923]
[1721228519654,2.89048,3459.7,3458.9,2.89109]
[1721228520416,2.4627,3460.0,3458.7,5.34919]
[1721228520617,2.89092,3459.2,3458.5,3.19338149]
[1721228520855,5.4627,3460.0,3458.7,2.89118]
[1721228520856,2.89064,3459.5,3458.7,2.89118]
[1721228521065,2.89064,3459.5,3458.7,5.34918]
[1721228521066,2.89067,3459.5,3458.7,5.34918]
[1721228521363,2.8905,3459.6,3458.9,2.89103]
[1721228521567,2.89029,3459.9,3458.9,2.89102]
[1721228521719,2.89048,3459.7,3459.0,3.425892]
[1721228521913,2.89028,3459.9,3459.0,3.425892]
[1721228521914,2.89028,3459.9,3459.0,5.689492]
[1721228522263,2.89028,3459.9,3459.1,2.8909]
[1721228522559,2.89028,3459.9,3459.2,2.89079]
[1721228522919,2.4627,3460.0,3458.9,1.50753943]
[1721228523125,2.89056,3459.6,3458.9,2.89104]
[1721228523522,2.4627,3460.0,3458.7,5.34922]
[1721228523523,2.89073,3459.4,3458.7,5.34922]
[1721228523865,5.3529,3460.0,3458.5,3.19338149]
[1721228523866,2.89076,3459.3,3458.5,3.19338149]
[1721228524084,2.89103,3459.0,3458.5,0.30200149]
[1721228524220,2.89114,3458.9,3458.2,2.89165]
[1721228524421,2.89114,3458.9,3458.2,5.78326]
[1721228524676,2.89114,3458.9,3458.2,0.78985885]
[1721228524956,2.89114,3458.9,3458.2,2.8916]
[1721228525156,2.89114,3458.9,3458.0,2.89176]
[1721228525372,2.4506,3458.8,3457.3,1.9614424]
[1721228525567,4.10334354,3459.1,3457.3,0.45326603]
[1721228525568,2.89195,3457.9,3457.3,0.45326603]
[1721228525923,2.89201,3457.8,3457.3,0.45326603]
[1721228526645,2.89201,3457.8,3457.1,2.89256]
[1721228526825,2.89201,3457.8,3457.1,3.716889]
[1721228527165,2.89218,3457.6,3457.1,0.824329]
[1721228527328,2.89218,3457.6,3457.0,2.458]
[1721228527724,2.89218,3457.6,3456.7,2.89286]
[1721228527924,2.89227,3457.5,3456.8,2.89284]
[1721228528124,2.89227,3457.5,3456.8,3.19489068]
[1721228528319,2.89227,3457.5,3456.8,3.54394567]
[1721228528828,2.89237,3457.4,3456.8,0.30205068]
[1721228529456,2.89237,3457.4,3456.6,5.8546248]
[1721228529457,2.89248,3457.3,3456.6,2.458]
[1721228529761,2.89263,3457.1,3456.6,2.458]
[1721228530422,2.89277,3456.9,3456.4,0.1719742]
[1721228530626,2.89263,3457.1,3456.4,0.1719742]
[1721228530860,2.89243,3457.3,3456.4,4.08183917]
[1721228531053,2.89262,3457.1,3456.4,4.08183917]
[1721228531439,2.89262,3457.1,3456.4,3.0651442]
[1721228531635,2.89278,3456.9,3456.4,0.1719742]
[1721228532126,5.29572,3457.1,3456.4,0.1719742]
[1721228532519,2.89268,3457.0,3456.4,0.1719742]
[1721228532728,5.29572,3457.1,3456.4,0.1719742]
[1721228533039,2.89222,3457.6,3456.6,5.35101]
[1721228533040,2.89234,3457.4,3456.6,5.35101]
[1721228533225,2.89227,3457.5,3456.6,5.35101]
[1721228533692,2.4815,3457.6,3456.6,2.458]
[1721228533693,2.89249,3457.3,3456.6,2.458]
[1721228533842,2.89236,3457.4,3456.6,2.458]
[1721228534304,2.89236,3457.4,3456.5,2.89308]
[1721228534580,2.89236,3457.4,3456.6,5.351]
[1721228534728,2.89227,3457.5,3456.7,2.89291]
[1721228534929,2.89243,3457.3,3456.6,3.29960542]
[1721228535161,2.89241,3457.4,3456.7,2.89292]
[1721228535357,2.89243,3457.3,3456.6,2.458]
[1721228535734,2.89227,3457.5,3456.7,2.89292]
[1721228536061,2.89227,3457.5,3456.7,3.73451942]
[1721228536239,2.89235,3457.4,3456.7,3.73451942]
[1721228536449,5.37369,3457.6,3456.8,2.89284]
[1721228536640,5.37368,3457.6,3456.8,2.89284]
[1721228537133,5.37369,3457.6,3456.9,2.89276]
[1721228537764,2.89096,3459.1,3457.3,5.35036]
[1721228537765,2.89176,3458.1,3457.3,5.35036]
[1721228538091,5.19748,3458.4,3457.3,2.458]
[1721228538242,2.89173,3458.2,3457.5,2.89225]
[1721228538575,5.19748,3458.4,3457.5,2.89225]
[1721228538576,2.3059,3458.4,3457.5,0.535025]
[1721228538727,2.89104,3459.0,3458.0,2.89178]
[1721228539056,5.3314,3459.4,3458.5,5.34938]
[1721228539510,2.89051,3459.6,3458.5,5.34938]
[1721228539511,2.89051,3459.6,3458.5,5.884318]
[1721228539818,2.89055,3459.6,3458.8,2.89116]
[1721228540025,2.89009,3460.1,3459.1,2.89091]
[1721228540184,2.88966,3460.7,3458.5,3.578938]
[1721228540185,2.88979,3460.5,3459.5,2.89059]
[1721228540380,2.88994,3460.3,3459.5,2.89059]
[1721228541115,2.88994,3460.3,3459.3,5.34867]
[1721228541116,2.89018,3460.0,3459.3,2.458]
[1721228541304,2.89018,3460.0,3459.2,2.89083]
[1721228541628,2.89018,3460.0,3458.9,2.458]
[1721228541777,2.89018,3460.0,3459.0,3.13679]
[1721228541778,2.89035,3459.8,3459.0,3.13679]
[1721228541982,2.3925,3459.7,3457.7,0.60741935]
[1721228542177,2.3925,3459.7,3457.6,0.91115743]
[1721228542178,2.89126,3458.7,3457.6,2.458]
[1721228542487,2.89126,3458.7,3457.4,2.3657]
[1721228542488,2.89085,3459.2,3458.2,2.89164]
[1721228542701,2.89085,3459.2,3458.3,2.89154]
[1721228542890,0.55,3459.6,3458.3,2.89154]
[1721228542891,2.89093,3459.1,3458.3,2.89154]
[1721228543089,2.89077,3459.3,3458.3,2.89159]
[1721228543290,2.89069,3459.4,3458.3,2.89159]
[1721228543494,2.8908,3459.3,3458.3,2.89159]
[1721228543878,2.89075,3459.3,3458.3,2.89159]
[1721228544079,2.89098,3459.1,3458.1,2.89174]
[1721228544345,0.55,3459.6,3457.7,4.59208]
[1721228544346,2.89073,3459.4,3457.7,4.59208]
[1721228544479,2.4875,3459.2,3457.6,5.35011]
[1721228544817,2.8914,3458.6,3457.6,6.410976]
[1721228545035,2.89143,3458.5,3457.6,3.518806]
[1721228545184,2.89143,3458.5,3457.6,2.89217]
[1721228545620,2.89151,3458.4,3457.6,2.89217]
[1721228546123,2.89169,3458.2,3457.3,2.89242]
[1721228546483,2.89192,3457.9,3456.9,6.42606794]
[1721228546683,2.89192,3457.9,3457.0,2.89264]
[1721228546684,2.89211,3457.7,3457.0,2.89264]
[1721228547108,2.89192,3457.9,3457.0,2.89264]
[1721228547291,2.89168,3458.2,3457.4,2.89233]
[1721228547497,2.4263,3458.3,3457.4,2.89233]
[1721228547817,2.89167,3458.2,3457.4,2.89233]
[1721228548196,2.4263,3458.3,3457.5,2.89225]
[1721228548496,2.8916,3458.3,3457.5,2.89225]
[1721228548695,2.4263,3458.8,3458.0,2.89184]
[1721228548896,2.89101,3459.0,3458.0,2.89184]
[1721228549119,2.89101,3459.0,3458.2,2.89159]
[1721228549290,2.3956,3459.4,3458.0,2.89184]
[1721228549517,2.89101,3459.0,3458.2,2.89161]
[1721228549715,2.89084,3459.2,3458.3,2.89157]
[1721228550010,2.89084,3459.2,3458.4,2.8915]
[1721228550231,5.28629,3459.4,3458.4,2.8915]
[1721228550544,5.28629,3459.4,3458.6,2.89134]
[1721228550545,3.0,3459.3,3458.6,2.89134]
[1721228550913,5.89075,3459.3,3458.6,2.89134]
[1721228551109,2.89105,3459.0,3458.1,2.89175]
[1721228551417,3.0,3459.3,3457.8,3.28]
[1721228551620,2.89126,3458.7,3458.0,2.89183]
[1721228551817,2.89126,3458.7,3457.8,3.44839599]
[1721228552006,2.89126,3458.7,3457.8,2.89197]
[1721228552230,2.89095,3459.1,3458.0,2.89184]
[1721228552458,2.89126,3458.7,3458.0,2.89184]
[1721228552604,2.8911,3458.9,3458.0,2.89184]
[1721228552810,2.8911,3458.9,3457.8,2.89198]
[1721228552811,2.89131,3458.7,3457.8,2.89198]
[1721228553347,2.89131,3458.7,3457.7,2.89207]
[1721228553565,2.89135,3458.6,3457.8,2.892]
[1721228553710,2.89135,3458.6,3457.9,2.89192]
[1721228554110,2.89142,3458.5,3457.5,6.36868988]
[1721228554363,2.89172,3458.2,3457.4,2.89227]
[1721228554649,2.89151,3458.4,3457.5,2.89226]
[1721228554817,2.8916,3458.3,3457.5,2.89226]
[1721228555558,2.89168,3458.2,3457.5,2.89226]
[1721228555718,2.89151,3458.4,3457.5,2.89226]
[1721228555905,2.89151,3458.4,3457.5,3.798728]
[1721228556110,2.89172,3458.2,3457.5,3.798728]
[1721228556612,5.24516,3458.6,3457.7,2.89204]
[1721228556920,5.24516,3458.6,3457.8,2.892]
[1721228556921,2.89145,3458.5,3457.8,2.892]
[1721228557946,5.24516,3458.6,3457.3,3.28]
[1721228557947,2.89153,3458.4,3457.3,3.28]
[1721228558133,2.89201,3457.8,3457.0,0.30205873]
[1721228558330,2.89201,3457.8,3457.0,2.89261]
[1721228558655,2.89201,3457.8,3456.8,2.89281]
[1721228558656,2.8921,3457.7,3456.8,2.89281]
[1721228558943,2.8921,3457.7,3457.0,2.89267]
[1721228559526,2.89201,3457.8,3457.0,2.89267]
[1721228559852,2.89201,3457.8,3456.8,2.89281]
[1721228559853,2.89218,3457.6,3456.8,2.89281]
[1721228560178,2.3619,3457.5,3456.7,0.3020705]
[1721228560450,2.3619,3457.5,3456.4,0.1719742]
[1721228560451,2.89284,3456.8,3456.4,0.1719742]
[1721228560953,2.89262,3457.1,3456.4,0.1719742]
[1721228560954,2.89278,3456.9,3456.4,0.1719742]
[1721228561308,2.89286,3456.8,3456.4,0.1719742]
[1721228563754,2.89269,3457.0,3456.4,0.1719742]
[1721228564055,2.89285,3456.8,3456.4,0.1719742]
[1721228565270,2.89276,3456.9,3456.4,0.1719742]
[1721228565631,2.89268,3457.0,3456.4,0.1719742]
[1721228566441,2.89254,3457.2,3456.4,3.0151542]
[1721228566746,2.89237,3457.4,3456.5,2.89308]
[1721228567072,2.89252,3457.2,3456.5,2.89308]
[1721228567669,2.89244,3457.3,3456.5,2.89308]
[1721228567870,2.89165,3458.3,3456.5,2.89308]
[1721228567871,2.89224,3457.6,3456.7,2.89287]
[1721228568097,2.89224,3457.6,3456.5,0.59082942]
[1721228568098,2.89227,3457.5,3456.8,2.89284]
[1721228568228,2.89227,3457.5,3456.9,2.89276]
[1721228569074,2.89227,3457.5,3456.5,2.59292713]
[1721228569075,2.89227,3457.5,3456.7,2.89287]
[1721228569373,2.89215,3457.7,3456.9,2.89275]
[1721228569667,2.89217,3457.6,3456.9,2.89275]
[1721228570686,2.89226,3457.5,3456.6,2.89295]
[1721228570854,2.89217,3457.6,3456.5,5.48594713]
[1721228570855,2.89235,3457.4,3456.5,3.19511771]
[1721228571060,2.89281,3456.9,3456.5,0.30209771]
[1721228571369,2.89281,3456.9,3456.4,0.1219742]
[1721228571538,5.78526,3457.1,3456.4,0.1219742]
[1721228571738,2.89273,3457.0,3456.4,0.1219742]
[1721228571952,2.89269,3457.0,3456.4,0.1219742]
[1721228573397,2.89264,3457.1,3456.4,3.0150942]
[1721228573980,2.89251,3457.2,3456.4,3.0150942]
[1721228574149,2.89261,3457.1,3456.4,3.0150942]
[1721228574794,2.89269,3457.0,3456.4,3.0150942]
[1721228575698,2.89269,3457.0,3456.4,0.1219742]
[1721228575885,2.89281,3456.9,3456.4,0.1219742]
[1721228576100,2.89292,3456.8,3456.4,0.1219742]
[1721228576279,2.4373,3457.3,3456.4,0.1219742]
[1721228576481,2.89304,3456.6,3456.4,0.1219742]
[1721228577518,2.89309,3456.5,3456.4,0.1219742]
[1721228577672,2.89303,3456.6,3456.4,0.1219742]
[1721228577875,2.89289,3456.8,3456.4,0.1219742]
[1721228577876,2.89309,3456.5,3456.4,0.1219742]
[1721228578069,2.893,3456.7,3456.4,0.1219742]
[1721228580172,2.89278,3456.9,3456.4,0.1219742]
[1721228580373,2.89261,3457.1,3456.4,0.1219742]
[1721228580609,2.89207,3457.8,3457.1,2.89258]
[1721228580912,2.89185,3458.0,3457.3,2.89235]
[1721228581270,2.89193,3457.9,3457.2,2.462]
[1721228581609,2.89216,3457.7,3456.9,2.89273]
[1721228581794,2.89216,3457.7,3456.6,2.3916]
[1721228582004,2.89196,3457.9,3457.1,2.89258]
[1721228582196,5.2692,3458.1,3457.2,2.89248]
[1721228582381,5.2692,3458.1,3456.8,4.162]
[1721228582382,2.89131,3458.7,3457.8,2.89201]
[1721228582585,2.89131,3458.7,3457.9,2.89187]
[1721228582773,2.89103,3459.0,3457.8,2.89201]
[1721228583112,2.89104,3459.0,3458.0,2.89184]
[1721228583322,5.26139,3459.3,3458.0,2.89184]
[1721228583323,2.89126,3458.7,3458.0,2.89184]
[1721228583671,2.89094,3459.1,3458.2,2.89167]
[1721228583873,2.89129,3458.7,3458.0,2.89181]
[1721228584098,2.89109,3458.9,3458.0,2.89181]
[1721228584511,2.89127,3458.7,3458.0,2.89181]
[1721228585295,2.89111,3458.9,3458.2,2.89167]
[1721228585813,2.3706,3459.3,3458.3,2.89159]
[1721228585814,2.89096,3459.1,3458.3,2.89159]
[1721228586113,2.89042,3459.7,3458.8,2.89109]
[1721228586314,2.89031,3459.9,3458.9,2.462]
[1721228586531,2.3422,3460.4,3459.1,2.89091]
[1721228586679,2.89026,3459.9,3459.1,2.89091]
[1721228586880,2.89034,3459.8,3459.1,2.89091]
[1721228587419,2.89034,3459.8,3459.0,2.891]
[1721228587727,2.89018,3460.0,3458.8,3.276]
[1721228587728,2.89042,3459.7,3459.1,2.89092]
[1721228588014,5.23208,3460.4,3459.1,2.89092]
[1721228588015,2.89028,3459.9,3459.1,2.89092]
[1721228588221,2.89003,3460.2,3459.1,1.13361437]
[1721228588454,2.88978,3460.5,3459.4,2.89061]
[1721228588581,2.88968,3460.6,3459.8,2.89032]
[1721228588782,2.4859,3460.9,3459.8,2.89032]
[1721228588986,2.8896,3460.7,3459.8,2.89032]
[1721228589293,2.8896,3460.7,3459.7,2.8904]
[1721228589509,2.88985,3460.4,3459.7,2.8904]
[1721228590753,2.89001,3460.2,3459.4,2.89066]
[1721228591103,2.8901,3460.1,3459.4,2.89066]
[1721228591304,2.88985,3460.4,3459.6,2.89048]
[1721228591704,2.88993,3460.3,3459.6,2.89048]
[1721228593344,2.88993,3460.3,3459.4,2.89066]
[1721228593657,2.88993,3460.3,3459.5,2.89051]
[1721228594016,2.88993,3460.3,3459.6,2.89049]
[1721228594348,2.89001,3460.2,3459.5,2.89058]
[1721228596059,2.4859,3460.9,3458.9,3.276]
[1721228596261,2.89049,3459.7,3458.8,2.89117]
[1721228596421,2.89027,3459.9,3458.8,2.89117]
[1721228596422,2.89027,3459.9,3459.0,2.89095]
[1721228596625,3.55,3460.8,3459.3,2.89069]
[1721228596626,2.89011,3460.1,3459.3,2.89069]
[1721228597680,2.89038,3459.8,3459.0,4.59095]
[1721228597960,2.89038,3459.8,3459.1,2.89092]
[1721228598267,2.89048,3459.7,3458.8,2.89111]
[1721228598463,2.8905,3459.6,3458.8,2.89111]
[1721228598628,2.8905,3459.6,3458.9,0.516061]
[1721228599085,2.8905,3459.6,3458.9,2.89106]
[1721228599449,2.89034,3459.8,3459.0,2.89098]
[1721228600032,2.89017,3460.0,3459.0,2.89098]
[1721228600033,2.89042,3459.7,3459.0,2.89098]
[1721228600360,2.88878,3461.7,3459.0,1.7]
[1721228600564,2.8896,3460.7,3459.5,2.2811]
[1721228600868,2.8896,3460.7,3460.0,2.89016]
[1721228601167,2.88968,3460.6,3459.9,2.89024]
[1721228601345,2.89015,3460.1,3459.0,3.0]
[1721228601539,2.8903,3459.9,3459.1,2.89085]
[1721228601728,2.8903,3459.9,3458.8,5.2548]
[1721228601729,2.89026,3459.9,3459.0,2.89095]
[1721228602094,2.89026,3459.9,3459.2,2.89081]
[1721228602360,2.89035,3459.8,3459.0,2.89095]
[1721228602564,2.89035,3459.8,3458.9,2.89106]
[1721228602775,5.23587,3460.4,3458.6,3.276]
[1721228602926,2.89069,3459.4,3458.6,3.276]
[1721228603128,2.89064,3459.5,3458.8,2.89116]
[1721228603455,2.8905,3459.6,3458.8,2.89116]
[1721228603650,2.8906,3459.5,3458.8,2.89116]
[1721228603850,2.346,3460.4,3458.6,4.30828]
[1721228604051,2.346,3460.4,3459.2,2.89081]
[1721228604052,2.89026,3459.9,3459.2,2.89081]
[1721228604255,2.346,3460.4,3459.2,2.89081]
[1721228604256,2.89004,3460.2,3459.2,5.81579]
[1721228604428,2.88992,3460.3,3459.4,2.89062]
[1721228604847,2.88992,3460.3,3459.5,2.89052]
[1721228605227,2.89002,3460.2,3459.5,2.89052]
[1721228605838,2.281,3460.9,3459.7,2.8904]
[1721228606043,2.88936,3461.0,3460.0,2.89016]
[1721228606277,2.88967,3460.6,3460.0,2.89016]
[1721228606477,2.88967,3460.6,3459.8,3.50697]
[1721228606478,2.88967,3460.6,3459.8,0.61664]
[1721228606683,2.88967,3460.6,3459.8,3.50692]
[1721228606884,2.88951,3460.8,3460.0,2.89015]
[1721228607193,2.88968,3460.6,3460.0,2.89015]
[1721228607604,2.88951,3460.8,3460.0,3.20903859]
[1721228607743,2.88935,3461.0,3460.0,3.20903859]
[1721228607940,2.88942,3460.9,3460.2,2.89]
[1721228608147,2.88948,3460.9,3460.2,2.89]
[1721228608855,2.88928,3461.1,3460.2,2.88994]
[1721228609055,2.281,3461.4,3460.2,2.88994]
[1721228609056,2.8891,3461.3,3460.2,3.67561728]
[1721228609271,2.281,3461.4,3460.2,3.67561728]
[1721228609272,2.88917,3461.2,3460.5,2.88975]
[1721228610982,2.88863,3461.9,3460.9,2.88934]
[1721228611853,2.88868,3461.8,3461.1,2.3389]
[1721228612183,2.88868,3461.8,3460.8,2.88947]
[1721228612184,2.88884,3461.6,3460.8,2.88947]
[1721228612387,2.88952,3460.8,3459.3,1.7]
[1721228612568,2.88952,3460.8,3459.6,2.89043]
[1721228612569,2.88957,3460.8,3459.6,2.89043]
[1721228612774,2.88943,3460.9,3459.9,2.89024]
[1721228613082,2.88943,3460.9,3459.7,1.7]
[1721228613083,2.88943,3460.9,3460.2,2.89]
[1721228613283,2.8895,3460.8,3460.2,2.89]
[1721228613880,2.8895,3460.8,3459.8,2.89031]
[1721228613881,2.88976,3460.5,3459.8,2.89031]
[1721228614082,2.88998,3460.3,3459.7,1.7]
[1721228614447,2.88998,3460.3,3459.7,2.89041]
[1721228615358,2.88976,3460.5,3459.7,2.89041]
[1721228615559,2.8894,3461.0,3459.7,3.911143]
[1721228615779,2.88992,3460.3,3459.6,2.3225]
[1721228615944,2.88992,3460.3,3459.6,5.213]
[1721228616382,2.89001,3460.2,3459.5,4.59053]
[1721228616565,5.88915,3461.3,3459.2,2.89078]
[1721228616566,2.89026,3459.9,3459.2,2.89078]
[1721228616775,2.89026,3459.9,3459.3,3.0]
[1721228616974,2.88997,3460.3,3459.4,2.89066]
[1721228617157,2.89009,3460.1,3459.5,2.89057]
[1721228617366,2.89009,3460.1,3459.4,2.89061]
[1721228617563,2.88997,3460.3,3459.4,4.59061]
[1721228617846,2.88997,3460.3,3459.5,0.9171038]
[1721228618074,2.88997,3460.3,3459.4,4.59061]
[1721228618075,2.89009,3460.1,3459.4,1.7]
[1721228618379,2.89009,3460.1,3459.3,5.89075]
[1721228618787,2.453,3460.6,3458.7,2.89118]
[1721228618788,2.89042,3459.7,3458.7,2.89118]
[1721228618985,2.89066,3459.5,3458.6,2.67432206]
[1721228619292,2.89078,3459.3,3458.6,0.30212206]
[1721228619475,2.89122,3458.8,3458.0,2.89182]
[1721228619786,2.89122,3458.8,3458.1,2.89173]
[1721228619946,2.89122,3458.8,3458.0,3.701854]
[1721228619947,2.89106,3459.0,3458.2,2.89167]
[1721228620145,2.891,3459.1,3458.2,2.89167]
[1721228620364,2.89115,3458.9,3458.2,3.19391909]
[1721228620563,2.89118,3458.8,3458.2,0.30224909]
[1721228620998,2.89149,3458.5,3458.2,0.30224909]
[1721228621203,2.89149,3458.5,3457.5,4.59218]
[1721228621204,2.89149,3458.5,3457.7,2.89209]
[1721228621409,2.89108,3459.0,3457.2,2.3356]
[1721228621627,2.89194,3457.9,3457.2,2.3356]
[1721228621832,2.89202,3457.8,3457.0,0.05036808]
[1721228622115,2.89148,3458.5,3456.4,0.1219742]
[1721228622116,2.89224,3457.6,3456.4,0.1219742]
[1721228622402,2.2899,3457.9,3456.4,0.67796162]
[1721228622403,2.89234,3457.4,3456.4,0.67796162]
[1721228622569,2.89257,3457.2,3456.4,3.0151542]
[1721228623190,2.87727,3457.2,3456.4,0.1219742]
[1721228623571,2.87727,3457.2,3456.4,3.0151242]
[1721228624183,2.87727,3457.2,3456.5,2.89307]
[1721228624378,2.89234,3457.4,3456.5,2.89307]
[1721228624645,2.89219,3457.6,3456.6,0.59082942]
[1721228624768,2.89227,3457.5,3456.6,3.48381942]
[1721228625111,5.89174,3458.2,3456.7,2.89292]
[1721228625112,2.89209,3457.7,3456.7,2.89292]
[1721228625282,2.89209,3457.7,3456.8,0.80768294]
[1721228625869,2.89218,3457.6,3456.8,0.80768294]
[1721228626176,2.89228,3457.5,3456.8,0.80768294]
[1721228626502,2.89235,3457.4,3456.8,0.80768294]
[1721228626702,2.89235,3457.4,3456.4,0.1219742]
[1721228626703,2.89235,3457.4,3456.4,3.0151442]
[1721228627067,2.89251,3457.2,3456.4,3.0150942]
[1721228627376,2.89251,3457.2,3456.5,2.89307]